fUSD/lending_fUSD_20251027
["ID","MTS","AMOUNT","RATE_DAILY","PERIOD"]
[392513903,1761596962701,-500.0,0.00035616,2]
[392513904,1761596962726,-417.72102199,0.00035616,7]
[392513905,1761596962755,-500.0,0.00035616,7]
[392513906,1761596962781,-500.0,0.00035616,7]
[392513907,1761596962807,-500.0,0.00035616,7]
[392513908,1761596962832,-500.0,0.00035616,2]
[392513909,1761596962857,-3271.68,0.00035616,7]
[392513910,1761596962885,-500.0,0.00035616,7]
[392513911,1761596962912,-500.0,0.00035616,7]
[392513912,1761596962935,-500.0,0.00035616,7]
[392513913,1761596962962,-500.0,0.00035616,7]
[392513914,1761596962988,-3394.61,0.00035616,7]
[392513915,1761596963015,-500.0,0.00035616,7]
[392513916,1761596963039,-500.0,0.00035616,7]
[392513917,1761596963063,-500.0,0.00035616,3]
[392513918,1761596963087,-515.61223439,0.00035616,7]
[392513919,1761596963111,-500.0,0.00035616,7]
[392513920,1761596963134,-534.96033804,0.00035616,7]
[392513921,1761596963158,-500.0,0.00035616,7]
[392513922,1761596963181,-500.0,0.00035616,7]
[392513923,1761596963205,-500.0,0.00035616,7]
[392513924,1761596963229,-500.0,0.00035616,7]
[392513925,1761596963253,-500.0,0.00035616,2]
[392513926,1761596963278,-500.0,0.00035616,7]
[392513927,1761596963302,-500.0,0.00035616,7]
[392513928,1761596963331,-500.0,0.00035616,7]
[392513929,1761596963355,-500.0,0.00035616,7]
[392513930,1761596963379,-500.0,0.00035616,7]
[392513931,1761596963403,-500.0,0.00035616,7]
[392513932,1761596963427,-309.1805341,0.00035616,7]
[392513933,1761596963451,-604.56,0.00035616,7]
[392513934,1761596963474,-508.53637471,0.00035616,7]
[392513935,1761596963498,-500.0,0.00035616,7]
[392513936,1761596963521,-504.30995297,0.00035616,7]
[392513937,1761596963555,-507.56560826,0.00035616,7]
[392513938,1761596963588,-833.33,0.00035616,7]
[392513939,1761596963626,-500.0,0.00035616,7]
[392513940,1761596963664,-500.0,0.00035616,7]
[392513941,1761596963698,-500.0,0.00035616,7]
[392513942,1761596963738,-500.0,0.00035616,7]
[392513943,1761596963774,-500.0,0.00035616,7]
[392513944,1761596963808,-500.0,0.00035616,7]
[392513945,1761596963843,-504.70698002,0.00035616,7]
[392513946,1761596963877,-500.0,0.00035616,7]
[392513947,1761596963914,-500.0,0.00035616,7]
[392513948,1761596963946,-500.0,0.00035616,7]
[392513949,1761596963983,-3301.19,0.00035616,7]
[392513950,1761596964012,-500.0,0.00035616,7]
[392513951,1761596964045,-500.0,0.00035616,7]
[392513952,1761596964075,-500.0,0.00035616,7]
[392513953,1761596964106,-343.05042316,0.00035616,5]
[392513954,1761596964139,-500.0,0.00035616,7]
[392513955,1761596964169,-500.0,0.00035616,7]
[392513956,1761596964200,-582.03903939,0.00035616,7]
[392513957,1761596964231,-500.0,0.00035616,7]
[392513958,1761596964261,-500.0,0.00035616,7]
[392513959,1761596964289,-500.0,0.00035616,7]
[392513960,1761596964316,-500.0,0.00035616,7]
[392513961,1761596964343,-553.34549125,0.00035616,7]
[392513962,1761596964372,-511.76191242,0.00035616,7]
[392513963,1761596964402,-500.0,0.00035616,7]
[392513964,1761596964439,-500.0,0.00035616,7]
[392513965,1761596964469,-200.0,0.00035616,30]
[392513966,1761596964499,-500.0,0.00035643,2]
[392513967,1761596964528,-108582.0,0.00035644,120]
[392513968,1761596964557,-152.43,0.00035657,60]
[392513969,1761596964585,-157.0,0.0003567,120]
[392513970,1761596964614,-47393.0,0.00035671,120]
[392513971,1761596964643,-3862.0,0.00035671,120]
[392513972,1761596964676,-500.0,0.00035673,5]
[392513973,1761596964705,-175.89742083,0.00035673,5]
[392513974,1761596964737,-344.58701757,0.00035673,5]
[392513975,1761596964764,-500.0,0.00035673,5]
[392513976,1761596964796,-163.59755562,0.00035673,5]
[392513977,1761596964828,-160.13,0.00035679,60]
[392513978,1761596964857,-157.0,0.0003568,120]
[392513979,1761596964885,-157.0,0.0003569,120]
[392513980,1761596964916,-500.0,0.00035699,7]
[392513981,1761596964946,-500.0,0.00035699,7]
[392513982,1761596964977,-500.0,0.00035699,7]
[392513983,1761596965007,-500.0,0.00035699,7]
[392513984,1761596965037,-500.0,0.00035699,7]
[392513985,1761596965067,-500.0,0.00035699,7]
[392513986,1761596965095,-500.0,0.00035699,7]
[392513987,1761596965123,-500.0,0.00035699,7]
[392513988,1761596965152,-500.0,0.00035699,7]
[392513989,1761596965182,-500.0,0.00035699,7]
[392513990,1761596965211,-500.0,0.00035699,2]
[392513991,1761596965242,-500.0,0.00035699,2]
[392513992,1761596965273,-500.0,0.00035699,2]
[392513993,1761596965525,-289.25973413,0.00035699,2]
[392513994,1761596965558,-373518.67064265,0.000357,10]
[392513995,1761596967530,-185.94,0.00016712,2]
[392514005,1761597031999,-500.0,0.00025999,2]
[392514006,1761597032011,-500.0,0.00025999,2]
[392514007,1761597032022,-500.0,0.00025999,2]
[392514008,1761597032032,-150.0,0.00025999,2]
[392514009,1761597032042,-48.30182732,0.00025999,2]
[392514010,1761597032212,-451.69817268,0.00025999,2]
[392514011,1761597032222,-573.0,0.00029919,2]
[392514012,1761597032232,-176.099,0.00029919,2]
[392514013,1761597032242,-34878.67769884,0.0003179,2]
[392514014,1761597032267,-335.349535,0.0003179,2]
[392514030,1761597038237,-820.0,0.00029919,2]
[392514032,1761597038246,-197.87552807,0.00031789,2]
[392514033,1761597038278,-302.12447193,0.00031789,2]
[392514034,1761597038288,-417.55102629,0.00031789,2]
[392514035,1761597038298,-9475.8364931,0.0003179,2]
[392514101,1761597040188,-469.49683019,0.0003179,2]
[392514102,1761597040345,-899.2975514,0.0003179,2]
[392514103,1761597040401,-353.69976327,0.0003179,2]
[392514137,1761597049955,-519.49384648,0.0003179,2]
[392514138,1761597049978,-316.47033406,0.0003179,2]
[392514139,1761597049989,-1861.87539519,0.0003179,2]
[392514140,1761597050164,-330.28750452,0.0003179,2]
[392514143,1761597247531,128418.03,0.0003711,50]
[392514145,1761597423230,192.13789695,0.00027425,120]
[392514151,1761597998140,-156.56,0.00016426,2]
[392514152,1761597998167,-156.56,0.0001792,2]
[392514153,1761597998194,-156.56,0.00019413,2]
[392514154,1761597998221,-156.56,0.00020906,2]
[392514155,1761597998247,-86.88586708,0.00022399,2]
[392514156,1761598152034,-250.0,0.00017,2]
[392514157,1761598159116,-69.67413292,0.00022399,2]
[392514158,1761598159138,-156.56,0.00023893,2]
[392514161,1761598236272,-500.0,0.00024932,2]
[392514162,1761598236282,-1037.63,0.00025,2]
[392514163,1761598236292,-156.56,0.00025386,2]
[392514164,1761598236301,-156.56,0.00026879,2]
[392514165,1761598236310,-257.33364253,0.000269,60]
[392514166,1761598236319,-173.01932563,0.00028273,2]
[392514167,1761598236329,-156.56,0.00028373,2]
[392514168,1761598236338,-216.805222,0.00029716,2]
[392514169,1761598236347,-156.56,0.00029866,2]
[392514170,1761598236356,-172.83,0.00030109,2]
[392514171,1761598236366,-1339.0,0.00030359,2]
[392514172,1761598236375,-573.0,0.0003036,2]
[392514173,1761598236388,-820.0,0.0003036,2]
[392514174,1761598236398,-1593.0,0.0003036,2]
[392514175,1761598236407,-1313.0,0.0003036,2]
[392514176,1761598236416,-606.0,0.0003036,2]
[392514177,1761598236426,-1270.0,0.0003036,2]
[392514178,1761598236435,-818.0,0.0003036,2]
[392514179,1761598236445,-3490.0,0.0003036,2]
[392514180,1761598236454,-168.0,0.00030731,2]
[392514181,1761598236464,-168.0,0.00031261,2]
[392514182,1761598236473,-277.35679052,0.00031304,2]
[392514183,1761598236484,-156.56,0.00031359,2]
[392514184,1761598236493,-1234.59299744,0.0003169,2]
[392514185,1761598236503,-500.0,0.00031789,2]
[392514186,1761598236512,-387.28888275,0.00031789,2]
[392514187,1761598236521,-500.0,0.00031789,2]
[392514188,1761598236530,-411.28703514,0.00031789,2]
[392514189,1761598236542,-88.71296486,0.00031789,2]
[392514190,1761598236553,-442.95868793,0.00031789,2]
[392514191,1761598236566,-57.04131207,0.00031789,2]
[392514192,1761598236575,-329.72341158,0.00031789,2]
[392514193,1761598236594,-170.27658842,0.00031789,2]
[392514194,1761598236603,-234.26185319,0.00031789,2]
[392514198,1761598236626,-265.73814681,0.00031789,2]
[392514200,1761598236635,-150.0,0.00031789,2]
[392514202,1761598236646,-23.68592176,0.0003179,2]
[392514204,1761598236656,-176.31407824,0.0003179,2]
[392514206,1761598236666,-173.459,0.0003179,30]
[392514208,1761598236675,-4749.73836638,0.0003179,2]
[392514210,1761598236686,-271.91129923,0.0003179,2]
[392514247,1761598236928,-24673.32188234,0.0003179,2]
[392514249,1761598236938,-1000.0,0.0003179,2]
[392514251,1761598236947,-500.0,0.00031889,7]
[392514253,1761598236956,-519.19897658,0.00031889,7]
[392514255,1761598236965,-500.0,0.00031889,7]
[392514257,1761598236974,-500.0,0.00031989,7]
[392514259,1761598236983,-500.0,0.00031989,7]
[392514261,1761598236992,-469.97914108,0.00031999,7]
[392514263,1761598237003,-30.02085892,0.00031999,7]
[392514265,1761598237012,-500.0,0.00031999,7]
[392514267,1761598237021,-150.0,0.00032129,7]
[392514269,1761598237030,-150.0,0.00032129,7]
[392514271,1761598237039,-999.0,0.00032441,3]
[392514273,1761598237048,-168.0,0.00032471,2]
[392514274,1761598237057,-4875.32274699,0.00032583,2]
[392514276,1761598237068,-1114.63276947,0.00032583,2]
[392514277,1761598237080,-314.56448354,0.00032583,2]
[392514278,1761598237090,-1000.0,0.00032835,2]
[392514279,1761598237103,-24.58487469,0.00032852,2]
[392514280,1761598237126,-131.97512531,0.00032852,2]
[392514281,1761598237135,-500.0,0.00032876,2]
[392514282,1761598237144,-500.0,0.00032876,2]
[392514283,1761598237154,-500.0,0.00032876,2]
[392514284,1761598237163,-153.0,0.00032877,30]
[392514285,1761598237172,-153.0,0.00032877,30]
[392514286,1761598237181,-175.51,0.00032883,2]
[392514287,1761598237190,-150.0,0.00032883,2]
[392514288,1761598237202,-500.0,0.00032989,7]
[392514289,1761598237211,-500.0,0.00032989,2]
[392514290,1761598237220,-500.0,0.00032989,7]
[392514291,1761598237229,-150.99,0.00033038,2]
[392514292,1761598237239,-562.872,0.0003336,2]
[392514293,1761598237248,-246.151,0.0003336,2]
[392514294,1761598237258,-1593.0,0.0003336,2]
[392514295,1761598237266,-1313.0,0.0003336,2]
[392514296,1761598237276,-606.0,0.0003336,2]
[392514297,1761598237285,-1270.0,0.0003336,2]
[392514298,1761598237295,-818.0,0.0003336,2]
[392514299,1761598237303,-3490.0,0.0003336,2]
[392514300,1761598237312,-150.0,0.00033386,2]
[392514301,1761598237321,-200.0,0.00033545,10]
[392514302,1761598237330,-12516.7218751,0.00034,2]
[392514303,1761598237342,-1326.4511873,0.00034,2]
[392514304,1761598238165,-150.0,0.00033383,3]
[392514305,1761598238174,-472.20521253,0.00034,2]
[392514306,1761598238184,-34.2675961,0.00034359,60]
[392514320,1761598240306,-150.0,0.00033883,3]
[392514321,1761598240316,-122.0124039,0.00034359,60]
[392514322,1761598240327,-156.28,0.00034459,60]
[392514323,1761598240337,-500.0,0.0003454,7]
[392514324,1761598240347,-289.25973413,0.0003454,2]
[392514325,1761598240357,-500.0,0.0003454,7]
[392514326,1761598240367,-960.72697097,0.00034628,2]
[392514327,1761598240379,-1600.0,0.0003483,120]
[392514328,1761598240389,-4325.31914975,0.00035146,2]
[392514329,1761598240400,-915.81630635,0.00035146,2]
[392514330,1761598240410,-4401.0,0.00035203,2]
[392514331,1761598240420,-179.03018078,0.00035224,7]
[392514332,1761598240430,-3451.3723076,0.00035225,2]
[392514333,1761598240671,-8943.78386462,0.00035225,2]
[392514334,1761598240684,-9077.54866152,0.00035225,2]
[392514335,1761598240695,-75.5098748,0.00035225,2]
[392514336,1761598240705,-196.1161529,0.00035225,2]
[392514337,1761598240715,-8672.21420719,0.00035225,2]
[392514338,1761598240769,-150.0,0.00034383,3]
[392514339,1761598240779,-312.17220122,0.00035225,2]
[392514351,1761598243335,-135.90992144,0.00033386,2]
[392514352,1761598243384,-14.09007856,0.00033386,2]
[392514353,1761598243394,-542.9385163,0.00035225,2]
[392514354,1761598244646,-316.92157594,0.0003036,2]
[392514355,1761598244661,-587.07842406,0.0003036,2]
[392514356,1761598244677,-854.21948598,0.0003336,2]
[392514365,1761598246293,-49.78051402,0.0003336,2]
[392514366,1761598246304,-370.4423125,0.00035225,2]
[392514367,1761598246506,-804.47039619,0.00035225,2]
[392514370,1761598262288,195.0,0.00027315,120]
[392514371,1761598262374,195.0,0.00027416,120]
[392514372,1761598262474,195.0,0.00029971,120]
[392514373,1761598263085,300.0,0.00027315,120]
[392514374,1761598263197,300.0,0.00027416,120]
[392514375,1761598263786,1049.29061305,0.00027315,120]
[392514376,1761598264841,187.4775085,0.00027315,120]
[392514377,1761598329681,195.0,0.00027315,120]
[392514378,1761598329790,195.0,0.00024882,120]
[392514379,1761598385589,415.3305846,0.00027315,120]
[392514380,1761598442964,195.0,0.00027315,120]
[392514381,1761598443608,300.0,0.00027315,120]
[392514382,1761598516508,346.04,0.00013699,2]
[392514384,1761598748982,2342.066,0.00031507,120]
[392514385,1761598827666,1000.0,0.0003,120]
[392514388,1761599104309,10128.92995458,0.00037106,50]
[392514390,1761599232092,-151.0,0.00020187,2]
[392514391,1761599232114,-346.04,0.00020187,2]
[392514392,1761599232136,-623.85694216,0.000202,2]
[392514393,1761599232156,-250.0,0.00022206,2]
[392514394,1761599232177,-500.0,0.00024832,2]
[392514395,1761599232198,-500.0,0.00024932,2]
[392514396,1761599232218,-180.00742709,0.00026423,2]
[392514397,1761599232238,-175.06,0.00026523,2]
[392514398,1761599232258,-54.96177802,0.00026676,2]
[392514399,1761599310445,10000.0,0.00037106,120]
[392514400,1761599310702,10000.0,0.00037106,120]
[392514401,1761599364156,-291.07822198,0.00026676,2]
[392514402,1761599364185,-476.74869043,0.00028186,2]
[392514403,1761599364212,-150.0,0.00028694,2]
[392514413,1761599431472,-156.0,0.0003,14]
[392514414,1761599431485,-156.0,0.00030411,14]
[392514415,1761599431495,-109.82543743,0.00030685,2]
[392514416,1761599431519,-41.17456257,0.00030685,2]
[392514417,1761599431529,-151.0,0.00030685,2]
[392514418,1761599431539,-151.0,0.00030685,2]
[392514419,1761599431549,-1.60496184,0.00030685,2]
[392514420,1761599431565,-370.52181997,0.00030685,2]
[392514421,1761599431577,-127.87321819,0.00030685,2]
[392514422,1761599431587,-151.0,0.00030685,2]
[392514423,1761599431596,-190.0,0.00030699,2]
[392514424,1761599431606,-400.0,0.00030699,2]
[392514425,1761599431616,-206.55678181,0.00030699,2]
[392514426,1761599431628,-193.44321819,0.00030699,2]
[392514427,1761599431638,-118.55678181,0.00030699,2]
[392514428,1761599431653,-1481.44321819,0.00030699,2]
[392514429,1761599431663,-552.97,0.000307,14]
[392514430,1761599431673,-2000.0,0.00030701,2]
[392514431,1761599431683,-1127.0,0.00030701,2]
[392514432,1761599431693,-173.459,0.00030702,27]
[392514433,1761599431703,-928.05403419,0.00030702,2]
[392514434,1761599431714,-500.0,0.00030702,2]
[392514435,1761599431724,-500.0,0.00030702,2]
[392514436,1761599431734,-500.0,0.00030702,2]
[392514437,1761599431744,-153.01216799,0.00030702,2]
[392514438,1761599431753,-500.0,0.00030702,2]
[392514439,1761599431763,-500.0,0.00030702,2]
[392514440,1761599431777,-500.0,0.00030702,2]
[392514441,1761599431786,-500.0,0.00030702,2]
[392514442,1761599431796,-410.81124345,0.00030702,2]
[392514444,1761599431806,-500.0,0.00030702,2]
[392514446,1761599431816,-500.0,0.00030702,2]
[392514448,1761599431825,-500.0,0.00030702,2]
[392514449,1761599431835,-500.0,0.00030702,2]
[392514450,1761599431847,-500.0,0.00030702,2]
[392514452,1761599431859,-500.0,0.00030702,2]
[392514454,1761599431869,-500.0,0.00030702,2]
[392514456,1761599431878,-248.65170836,0.00030702,2]
[392514458,1761599431887,-500.0,0.00030702,2]
[392514459,1761599431897,-500.0,0.00030702,2]
[392514460,1761599431907,-500.0,0.00030702,2]
[392514461,1761599431917,-500.0,0.00030702,2]
[392514462,1761599431926,-500.0,0.00030702,2]
[392514463,1761599431936,-500.0,0.00030702,2]
[392514464,1761599431945,-150.0,0.00030703,2]
[392514465,1761599431955,-3416.0,0.00030703,2]
[392514466,1761599431964,-2055.0,0.00030703,2]
[392514467,1761599431974,-573.0,0.00030703,2]
[392514468,1761599431984,-922.193,0.00030703,2]
[392514469,1761599431994,-620.663,0.00030703,2]
[392514470,1761599432003,-1313.0,0.00030703,2]
[392514471,1761599432012,-1593.0,0.00030703,2]
[392514472,1761599432022,-1270.0,0.00030703,2]
[392514473,1761599432031,-818.0,0.00030703,2]
[392514474,1761599432040,-904.0,0.00030703,2]
[392514475,1761599432050,-708.71962783,0.00030703,2]
[392514476,1761599432082,-601.70337217,0.00030703,2]
[392514477,1761599432092,-2255.27056678,0.00030856,2]
[392514478,1761599432105,-4368.72943322,0.00030856,2]
[392514479,1761599432115,-3490.0,0.00030856,2]
[392514480,1761599432124,-6458.0,0.00030856,2]
[392514481,1761599432134,-552.97,0.00030974,14]
[392514482,1761599432143,-64.00511315,0.00031111,2]
[392514485,1761599437601,-308.99179406,0.00030856,2]
[392514486,1761599437624,-352.57120594,0.00030856,2]
[392514487,1761599437634,-147.42879406,0.00031111,2]
[392514488,1761599437645,-664.31480215,0.00031111,2]
[392514489,1761599437654,-500.0,0.00031233,2]
[392514490,1761599437664,-552.97,0.00031248,14]
[392514491,1761599437673,-255.2082825,0.000315,2]
[392514492,1761599437685,-244.7917175,0.000315,2]
[392514493,1761599437695,-379.12411188,0.00031522,14]
[392514498,1761599439486,-173.84588812,0.00031522,14]
[392514499,1761599439496,-193.0,0.00031557,2]
[392514500,1761599439506,-41.43220455,0.0003162,2]
[392514501,1761599439670,-292.56779545,0.0003162,2]
[392514502,1761599439681,-156.0,0.00031644,14]
[392514503,1761599439692,-517.81471456,0.00031683,2]
[392514504,1761599439702,-829.0,0.00031722,2]
[392514505,1761599439712,-1785.0,0.00031786,2]
[392514506,1761599439723,-552.97,0.00031796,14]
[392514507,1761599439733,-223.0,0.00031849,2]
[392514508,1761599439744,-500.0,0.00031889,7]
[392514509,1761599439756,-500.0,0.00031889,7]
[392514510,1761599439768,-381.65070688,0.00031889,7]
[392514511,1761599439780,-485.79681914,0.00031889,7]
[392514512,1761599439790,-383.0,0.00031912,2]
[392514513,1761599439800,-346.0,0.00031976,2]
[392514514,1761599439812,-500.0,0.00031989,7]
[392514515,1761599439822,-500.0,0.00031989,7]
[392514516,1761599439831,-500.0,0.00031999,7]
[392514517,1761599439842,-150.79822272,0.00031999,7]
[392514518,1761599439855,-349.20177728,0.00031999,7]
[392514519,1761599439866,-1812.0,0.00032039,2]
[392514520,1761599439876,-683.85123454,0.00032048,2]
[392514521,1761599439885,-553.0,0.0003207,14]
[392514522,1761599439894,-807.0,0.00032102,2]
[392514523,1761599439903,-150.0,0.00032104,7]
[392514524,1761599439913,-150.0,0.00032104,7]
[392514525,1761599439922,-150.0,0.00032104,7]
[392514526,1761599439932,-150.0,0.00032104,7]
[392514527,1761599439945,-150.0,0.00032104,7]
[392514528,1761599439954,-150.0,0.00032104,7]
[392514529,1761599439965,-150.0,0.00032104,7]
[392514530,1761599439975,-150.0,0.00032104,7]
[392514531,1761599439984,-150.00000001,0.00032104,7]
[392514532,1761599439993,-150.0,0.00032104,7]
[392514533,1761599440003,-150.0,0.00032104,7]
[392514534,1761599440012,-150.0,0.00032104,7]
[392514535,1761599440023,-578.20924308,0.00032118,2]
[392514536,1761599440033,-250.0,0.00032118,2]
[392514537,1761599440043,-250.0,0.00032118,2]
[392514538,1761599440055,-250.0,0.00032118,2]
[392514539,1761599440065,-250.0,0.00032118,2]
[392514540,1761599440075,-250.0,0.00032118,2]
[392514541,1761599440085,-250.0,0.00032118,2]
[392514542,1761599440094,-250.0,0.00032118,2]
[392514543,1761599440104,-250.0,0.00032118,2]
[392514544,1761599440113,-250.0,0.00032118,2]
[392514545,1761599440122,-113.95653982,0.00032118,2]
[392514546,1761599440133,-58.57555974,0.00032118,2]
[392514547,1761599440143,-277.35679052,0.00032118,2]
[392514548,1761599440151,-500.0,0.00032118,2]
[392514549,1761599440160,-500.0,0.00032118,2]
[392514550,1761599440171,-500.0,0.00032118,2]
[392514551,1761599440180,-500.0,0.00032118,2]
[392514552,1761599440190,-500.0,0.00032118,2]
[392514553,1761599440200,-601.0,0.00032157,7]
[392514554,1761599440210,-203.0,0.00032166,2]
[392514555,1761599440221,-431.79551946,0.0003217,2]
[392514556,1761599440232,-1347.0,0.00032229,2]
[392514557,1761599440242,-1653.0,0.00032292,2]
[392514558,1761599440252,-200.0,0.00032331,2]
[392514559,1761599440262,-169.10068399,0.0003235,5]
[392514560,1761599440275,-517.24,0.00032403,2]
[392514561,1761599440284,-985.71531091,0.00032713,2]
[392514562,1761599440295,-14.28468909,0.00032713,2]
[392514563,1761599440304,-601.0,0.00032755,2]
[392514564,1761599440314,-603.0,0.00032802,2]
[392514565,1761599440323,-601.0,0.00032859,2]
[392514566,1761599440332,-798.56,0.00032868,30]
[392514567,1761599440341,-153.0,0.00032877,30]
[392514568,1761599440350,-153.0,0.00032877,30]
[392514569,1761599440360,-153.0,0.00032877,30]
[392514570,1761599440370,-153.0,0.00032877,30]
[392514571,1761599440379,-153.0,0.00032877,30]
[392514572,1761599440389,-153.0,0.00032877,30]
[392514573,1761599440398,-153.0,0.00032877,30]
[392514574,1761599440406,-153.0,0.00032877,30]
[392514575,1761599440416,-153.0,0.00032877,30]
[392514576,1761599440425,-153.0,0.00032877,30]
[392514577,1761599440434,-153.0,0.00032877,30]
[392514578,1761599440443,-153.0,0.00032877,30]
[392514579,1761599440453,-153.0,0.00032877,30]
[392514580,1761599440462,-153.0,0.00032877,30]
[392514581,1761599440471,-153.0,0.00032877,30]
[392514582,1761599440480,-153.0,0.00032877,30]
[392514583,1761599440489,-153.0,0.00032877,30]
[392514584,1761599440498,-153.0,0.00032877,30]
[392514585,1761599440508,-153.0,0.00032877,30]
[392514586,1761599440517,-153.0,0.00032877,30]
[392514587,1761599440526,-153.0,0.00032877,30]
[392514588,1761599440535,-153.0,0.00032877,30]
[392514589,1761599440544,-153.0,0.00032877,30]
[392514590,1761599440554,-153.0,0.00032877,30]
[392514591,1761599440564,-300.0,0.00032877,120]
[392514592,1761599440573,-2026.35,0.00032891,2]
[392514593,1761599440583,-461.35397243,0.00032989,7]
[392514594,1761599440595,-38.64602757,0.00032989,7]
[392514595,1761599440604,-500.0,0.00032989,7]
[392514596,1761599440614,-150.0,0.00032996,7]
[392514597,1761599440624,-384.49,0.00033004,2]
[392514598,1761599440633,-600.0,0.00033015,7]
[392514599,1761599440642,-560.0,0.00033063,2]
[392514600,1761599440652,-560.0,0.00033063,3]
[392514601,1761599440661,-346.04,0.00033165,2]
[392514602,1761599440671,-167.43,0.00033168,2]
[392514603,1761599440680,-150.0,0.00033184,2]
[392514604,1761599440690,-1440.0,0.00033202,3]
[392514605,1761599440699,-156.0,0.00033226,30]
[392514606,1761599440709,-603.0,0.00033301,2]
[392514607,1761599440719,-600.0,0.00033353,2]
[392514608,1761599440728,-600.0,0.00033411,2]
[392514609,1761599440738,-600.0,0.00033413,2]
[392514610,1761599440747,-601.0,0.00033519,2]
[392514611,1761599440757,-153.42375599,0.00033671,30]
[392514612,1761599440767,-733.81045133,0.00033703,2]
[392514613,1761599440802,-347.29063656,0.00033703,2]
[392514614,1761599441306,-2334.89891211,0.00033703,2]
[392514615,1761599441316,-2055.0,0.00033703,2]
[392514616,1761599441325,-573.0,0.00033703,2]
[392514617,1761599441334,-820.0,0.00033703,2]
[392514618,1761599441344,-606.0,0.00033703,2]
[392514619,1761599441354,-1313.0,0.00033703,2]
[392514620,1761599441365,-1593.0,0.00033703,2]
[392514621,1761599441375,-1270.0,0.00033703,2]
[392514622,1761599441385,-818.0,0.00033703,2]
[392514623,1761599441394,-208.09836646,0.00033855,7]
[392514624,1761599441403,-255.75740112,0.00033855,7]
[392514625,1761599441412,-6480.132,0.00033856,2]
[392514626,1761599441423,-1017.80255714,0.00033856,2]
[392514627,1761599442077,378.6572,0.00026576,2]
[392514632,1761599442596,-150.0,0.00033391,3]
[392514633,1761599442605,-1579.54751532,0.00033856,2]
[392514713,1761599449991,-892.64992754,0.00033856,2]
[392514714,1761599450000,-558.0,0.00033856,2]
[392514715,1761599450011,-150.0,0.00033888,7]
[392514716,1761599450021,-150.0,0.00033888,7]
[392514717,1761599450032,-150.0,0.00033888,7]
[392514718,1761599450045,-150.0,0.00033888,7]
[392514719,1761599450054,-150.0,0.00033888,7]
[392514720,1761599450063,-150.0,0.00033888,7]
[392514721,1761599450072,-150.0,0.00033888,7]
[392514722,1761599450082,-150.0,0.00033888,7]
[392514723,1761599450091,-150.0,0.00033891,3]
[392514724,1761599450101,-150.0,0.00033923,2]
[392514725,1761599450110,-150.0,0.00033923,120]
[392514726,1761599450120,-10482.0,0.00034,3]
[392514727,1761599450132,-153.42375599,0.00034027,30]
[392514728,1761599450142,-500.0,0.00034056,7]
[392514729,1761599450152,-500.0,0.00034056,7]
[392514730,1761599450163,-700.0,0.00034056,7]
[392514731,1761599450175,-600.0,0.0003406,2]
[392514732,1761599450183,-600.0,0.00034163,7]
[392514733,1761599450193,-1065.4786687,0.00034195,2]
[392514734,1761599450202,-1000.0,0.000342,2]
[392514735,1761599450211,-600.0,0.00034349,2]
[392514736,1761599450219,-150.3,0.00034361,60]
[392514737,1761599450230,-153.42375599,0.00034411,30]